[Event "Titled Tuesday Blitz April 12 Early 2022"]
[White "Kakulidis, Ellen"]
[Black "Devaev, Alexander"]
[WhiteFideId "1444972"]
[BlackFideId "4169395"]
[WhiteElo "1852"]
[BlackElo "2185"]
[Result "1-0"]
[Round "02"]
[TimeControl "180+1"]
[Date "2022.04.13"]
[WhiteClock "0:01:42"]
[BlackClock "0:01:41"]

1. Nf3 {[%clk 0:03:00]}  Nf6 {[%clk 0:02:57]} 2. g3 {[%clk 0:03:00]}  c5 {[%clk 0:02:58]} 3. c4 {[%clk 0:03:00]}  Nc6 {[%clk 0:02:58]} 4. Bg2 {[%clk 0:02:59]}  e6 {[%clk 0:02:59]} 5. O-O {[%clk 0:02:59]}  Be7 {[%clk 0:02:59]} 6. e3 {[%clk 0:02:59]}  O-O {[%clk 0:02:58]} 7. d4 {[%clk 0:02:58]}  cxd4 {[%clk 0:02:59]} 8. exd4 {[%clk 0:02:58]}  d5 {[%clk 0:02:58]} 9. cxd5 {[%clk 0:02:55]}  Nxd5 {[%clk 0:02:57]} 10. Nc3 {[%clk 0:02:54]}  Nb6 {[%clk 0:02:35]} 11. Bf4 {[%clk 0:02:46]}  Bf6 {[%clk 0:02:31]} 12. Ne5 {[%clk 0:02:38]}  Nxd4 {[%clk 0:02:16]} 13. Ne4 {[%clk 0:02:30]}  Bxe5 {[%clk 0:02:04]} 14. Bxe5 {[%clk 0:02:30]}  Nc6 {[%clk 0:02:04]} 15. Bd6 {[%clk 0:02:17]}  Re8 {[%clk 0:02:04]} 16. Qh5 {[%clk 0:02:01]}  Nd5 {[%clk 0:01:57]} 17. Ng5 {[%clk 0:01:54]}  Qxd6 {[%clk 0:01:40]} 18. Qxf7+ {[%clk 0:01:42]}  Kh8 {[%clk 0:01:41]} 19. Qxe8+ {[%clk 0:01:42]} 1-0


[Site "https://www.chess.com"]

[Event "Titled Tuesday Blitz April 12 Early 2022"]
[White "Kalavannan, Koby"]
[Black "Tari, Aryan"]
[WhiteFideId "425753"]
[BlackFideId "1510045"]
[WhiteElo "1927"]
[BlackElo "2567"]
[Result "0-1"]
[Round "02"]
[TimeControl "180+1"]
[Date "2022.04.12"]
[WhiteClock "0:00:01"]
[BlackClock "0:00:29"]

1. d4 {[%clk 0:03:00]}  d5 {[%clk 0:02:54]} 2. Nf3 {[%clk 0:03:00]}  Nf6 {[%clk 0:02:54]} 3. c4 {[%clk 0:03:01]}  e6 {[%clk 0:02:54]} 4. g3 {[%clk 0:03:01]}  Bd6 {[%clk 0:02:54]} 5. Bg2 {[%clk 0:02:58]}  O-O {[%clk 0:02:54]} 6. Qc2 {[%clk 0:02:57]}  h6 {[%clk 0:02:52]} 7. O-O {[%clk 0:02:57]}  Nc6 {[%clk 0:02:44]} 8. a3 {[%clk 0:02:44]}  Ne4 {[%clk 0:02:30]} 9. c5 {[%clk 0:02:41]}  Be7 {[%clk 0:02:29]} 10. b4 {[%clk 0:02:41]}  Bf6 {[%clk 0:02:19]} 11. Bb2 {[%clk 0:02:40]}  Re8 {[%clk 0:01:56]} 12. b5 {[%clk 0:02:39]}  Na5 {[%clk 0:01:56]} 13. Nbd2 {[%clk 0:02:39]}  Nxd2 {[%clk 0:01:53]} 14. Nxd2 {[%clk 0:02:40]}  b6 {[%clk 0:01:47]} 15. f4 {[%clk 0:02:33]}  a6 {[%clk 0:01:46]} 16. a4 {[%clk 0:02:28]}  c6 {[%clk 0:01:39]} 17. bxc6 {[%clk 0:02:02]}  Nxc6 {[%clk 0:01:40]} 18. Nf3 {[%clk 0:01:54]}  bxc5 {[%clk 0:01:35]} 19. Qxc5 {[%clk 0:01:52]}  Bd7 {[%clk 0:01:36]} 20. Ne5 {[%clk 0:01:42]}  Nxe5 {[%clk 0:01:34]} 21. fxe5 {[%clk 0:01:37]}  Rc8 {[%clk 0:01:24]} 22. Qa3 {[%clk 0:01:35]}  Be7 {[%clk 0:01:19]} 23. Qd3 {[%clk 0:01:35]}  Qb6 {[%clk 0:01:11]} 24. Bc1 {[%clk 0:01:21]}  Rc4 {[%clk 0:01:08]} 25. Be3 {[%clk 0:01:21]}  Rxa4 {[%clk 0:01:07]} 26. Rxa4 {[%clk 0:00:45]}  Bxa4 {[%clk 0:01:08]} 27. Bf2 {[%clk 0:00:43]}  Rc8 {[%clk 0:01:05]} 28. Qf3 {[%clk 0:00:38]}  Bc2 {[%clk 0:01:02]} 29. Be3 {[%clk 0:00:34]}  Bg6 {[%clk 0:01:02]} 30. Qg4 {[%clk 0:00:35]}  Rc3 {[%clk 0:01:00]} 31. Bf2 {[%clk 0:00:31]}  Bf5 {[%clk 0:00:52]} 32. Qh5 {[%clk 0:00:29]}  Bg6 {[%clk 0:00:52]} 33. Qg4 {[%clk 0:00:29]}  a5 {[%clk 0:00:52]} 34. e4 {[%clk 0:00:26]}  dxe4 {[%clk 0:00:43]} 35. Bxe4 {[%clk 0:00:27]}  Bxe4 {[%clk 0:00:43]} 36. Qxe4 {[%clk 0:00:28]}  Qc6 {[%clk 0:00:42]} 37. Qxc6 {[%clk 0:00:16]}  Rxc6 {[%clk 0:00:43]} 38. Ra1 {[%clk 0:00:14]}  Bb4 {[%clk 0:00:42]} 39. Be1 {[%clk 0:00:13]}  Bxe1 {[%clk 0:00:40]} 40. Rxe1 {[%clk 0:00:14]}  a4 {[%clk 0:00:41]} 41. Ra1 {[%clk 0:00:14]}  Rc4 {[%clk 0:00:41]} 42. Rd1 {[%clk 0:00:11]}  a3 {[%clk 0:00:41]} 43. Ra1 {[%clk 0:00:10]}  Ra4 {[%clk 0:00:41]} 44. Kf2 {[%clk 0:00:10]}  g5 {[%clk 0:00:39]} 45. Ke3 {[%clk 0:00:10]}  Kg7 {[%clk 0:00:40]} 46. Kd3 {[%clk 0:00:10]}  Kg6 {[%clk 0:00:41]} 47. Ra2 {[%clk 0:00:09]}  Kf5 {[%clk 0:00:39]} 48. h3 {[%clk 0:00:09]}  h5 {[%clk 0:00:39]} 49. Rf2+ {[%clk 0:00:09]}  Kg6 {[%clk 0:00:40]} 50. Ra2 {[%clk 0:00:09]}  Ra8 {[%clk 0:00:37]} 51. Kc3 {[%clk 0:00:09]}  Kf5 {[%clk 0:00:37]} 52. Kd3 {[%clk 0:00:09]}  h4 {[%clk 0:00:37]} 53. Rf2+ {[%clk 0:00:08]}  Kg6 {[%clk 0:00:37]} 54. Ra2 {[%clk 0:00:03]}  hxg3 {[%clk 0:00:37]} 55. Ke2 {[%clk 0:00:03]}  Rh8 {[%clk 0:00:31]} 56. Kf3 {[%clk 0:00:02]}  Rxh3 {[%clk 0:00:31]} 57. Rg2 {[%clk 0:00:01]}  Rh2 {[%clk 0:00:29]} 0-1


[Site "https://www.chess.com"]

[Event "Titled Tuesday Blitz April 12 Early 2022"]
[White "Kavyev, Ruslan"]
[Black "Manelyuk, Daniil"]
[WhiteFideId "34110981"]
[BlackFideId "44173920"]
[WhiteElo "2182"]
[BlackElo "2209"]
[Result "1-0"]
[Round "02"]
[TimeControl "180+1"]
[Date "2022.04.13"]
[WhiteClock "0:00:10"]
[BlackClock "0:00:06"]

1. d4 {[%clk 0:02:55]}  Nf6 {[%clk 0:02:58]} 2. c4 {[%clk 0:02:54]}  c5 {[%clk 0:02:58]} 3. d5 {[%clk 0:02:55]}  b5 {[%clk 0:02:58]} 4. cxb5 {[%clk 0:02:55]}  a6 {[%clk 0:02:59]} 5. bxa6 {[%clk 0:02:56]}  g6 {[%clk 0:02:59]} 6. Nc3 {[%clk 0:02:57]}  Bg7 {[%clk 0:02:58]} 7. e4 {[%clk 0:02:58]}  O-O {[%clk 0:02:57]} 8. Be2 {[%clk 0:02:58]}  Qa5 {[%clk 0:02:53]} 9. Bd2 {[%clk 0:02:59]}  Bxa6 {[%clk 0:02:47]} 10. e5 {[%clk 0:02:58]}  Ne8 {[%clk 0:02:43]} 11. Nf3 {[%clk 0:02:57]}  d6 {[%clk 0:02:26]} 12. e6 {[%clk 0:02:56]}  fxe6 {[%clk 0:02:27]} 13. Ng5 {[%clk 0:02:55]}  Nc7 {[%clk 0:02:27]} 14. Nb5 {[%clk 0:02:55]}  Qb6 {[%clk 0:02:11]} 15. Nxc7 {[%clk 0:02:55]}  Qxc7 {[%clk 0:02:08]} 16. Nxe6 {[%clk 0:02:55]}  Qb7 {[%clk 0:02:08]} 17. Nxf8 {[%clk 0:02:37]}  Kxf8 {[%clk 0:01:25]} 18. Bc3 {[%clk 0:02:13]}  Bxc3+ {[%clk 0:01:09]} 19. bxc3 {[%clk 0:02:14]}  Qb2 {[%clk 0:01:09]} 20. c4 {[%clk 0:01:34]}  Bxc4 {[%clk 0:00:58]} 21. Bxc4 {[%clk 0:01:30]}  Qc3+ {[%clk 0:00:57]} 22. Ke2 {[%clk 0:01:24]}  Qxc4+ {[%clk 0:00:52]} 23. Qd3 {[%clk 0:01:25]}  Qxd3+ {[%clk 0:00:47]} 24. Kxd3 {[%clk 0:01:25]}  Ra3+ {[%clk 0:00:43]} 25. Kc2 {[%clk 0:01:19]}  Na6 {[%clk 0:00:41]} 26. Kb2 {[%clk 0:01:18]}  Ra5 {[%clk 0:00:37]} 27. a3 {[%clk 0:01:16]}  Nc7 {[%clk 0:00:35]} 28. Rhd1 {[%clk 0:01:12]}  Nb5 {[%clk 0:00:36]} 29. a4 {[%clk 0:01:05]}  Nd4 {[%clk 0:00:25]} 30. Kc3 {[%clk 0:01:05]}  Kf7 {[%clk 0:00:24]} 31. Rxd4 {[%clk 0:01:04]}  cxd4+ {[%clk 0:00:24]} 32. Kb4 {[%clk 0:00:47]}  Rxd5 {[%clk 0:00:09]} 33. a5 {[%clk 0:00:48]}  Rc5 {[%clk 0:00:09]} 34. a6 {[%clk 0:00:48]}  Rc8 {[%clk 0:00:10]} 35. a7 {[%clk 0:00:48]}  Ra8 {[%clk 0:00:10]} 36. Kb5 {[%clk 0:00:48]}  Ke6 {[%clk 0:00:10]} 37. Kb6 {[%clk 0:00:48]}  Kd5 {[%clk 0:00:11]} 38. Kb7 {[%clk 0:00:48]}  Rxa7+ {[%clk 0:00:11]} 39. Kxa7 {[%clk 0:00:20]}  d3 {[%clk 0:00:12]} 40. Kb6 {[%clk 0:00:20]}  Kd4 {[%clk 0:00:12]} 41. Kc6 {[%clk 0:00:20]}  d5 {[%clk 0:00:13]} 42. Kd7 {[%clk 0:00:19]}  e5 {[%clk 0:00:12]} 43. Ke6 {[%clk 0:00:19]}  e4 {[%clk 0:00:13]} 44. Kd6 {[%clk 0:00:18]}  Kc4 {[%clk 0:00:10]} 45. Ke5 {[%clk 0:00:18]}  d2 {[%clk 0:00:03]} 46. h4 {[%clk 0:00:13]}  Kd3 {[%clk 0:00:03]} 47. Kxd5 {[%clk 0:00:12]}  e3 {[%clk 0:00:03]} 48. fxe3 {[%clk 0:00:11]}  Kxe3 {[%clk 0:00:04]} 49. Ke5 {[%clk 0:00:08]}  Kf2 {[%clk 0:00:04]} 50. g4 {[%clk 0:00:08]}  Ke2 {[%clk 0:00:04]} 51. Kf6 {[%clk 0:00:08]}  d1=Q {[%clk 0:00:04]} 52. Rxd1 {[%clk 0:00:08]}  Kxd1 {[%clk 0:00:05]} 53. Kg7 {[%clk 0:00:09]}  Ke2 {[%clk 0:00:05]} 54. Kxh7 {[%clk 0:00:09]}  Kf3 {[%clk 0:00:05]} 55. Kxg6 {[%clk 0:00:10]}  Kxg4 {[%clk 0:00:06]} 56. h5 {[%clk 0:00:10]} 1-0


[Site "https://www.chess.com"]

[Event "Titled Tuesday Blitz April 12 Early 2022"]
[White "Kazakouski, Valery"]
[Black "Pajeken, Jakob Leon"]
[WhiteFideId "13507443"]
[BlackFideId "12942839"]
[WhiteElo "2524"]
[BlackElo "2351"]
[Result "1-0"]
[Round "02"]
[TimeControl "180+1"]
[Date "2022.04.12"]
[WhiteClock "0:00:29"]
[BlackClock "0:00:16"]

1. d4 {[%clk 0:02:59]}  d5 {[%clk 0:02:55]} 2. c4 {[%clk 0:02:59]}  dxc4 {[%clk 0:02:55]} 3. e4 {[%clk 0:02:59]}  Nf6 {[%clk 0:02:54]} 4. e5 {[%clk 0:02:59]}  Nd5 {[%clk 0:02:54]} 5. Bxc4 {[%clk 0:03:00]}  Bf5 {[%clk 0:02:54]} 6. Nc3 {[%clk 0:02:58]}  c6 {[%clk 0:02:53]} 7. Nge2 {[%clk 0:02:54]}  e6 {[%clk 0:02:46]} 8. h4 {[%clk 0:02:48]}  h5 {[%clk 0:02:41]} 9. Ng3 {[%clk 0:02:46]}  Bg6 {[%clk 0:02:37]} 10. Bg5 {[%clk 0:02:28]}  Be7 {[%clk 0:02:34]} 11. Bxe7 {[%clk 0:02:28]}  Qxe7 {[%clk 0:02:34]} 12. Be2 {[%clk 0:02:15]}  Nxc3 {[%clk 0:02:27]} 13. bxc3 {[%clk 0:02:15]}  Nd7 {[%clk 0:02:28]} 14. a4 {[%clk 0:01:54]}  Nb6 {[%clk 0:02:18]} 15. Bxh5 {[%clk 0:01:46]}  Bxh5 {[%clk 0:02:16]} 16. Nxh5 {[%clk 0:01:47]}  O-O-O {[%clk 0:02:16]} 17. a5 {[%clk 0:01:16]}  Nd5 {[%clk 0:02:14]} 18. a6 {[%clk 0:01:09]}  b6 {[%clk 0:02:07]} 19. Qf3 {[%clk 0:01:08]}  Rh6 {[%clk 0:01:38]} 20. g3 {[%clk 0:01:05]}  Rdh8 {[%clk 0:01:33]} 21. Nf4 {[%clk 0:01:05]}  Nxf4 {[%clk 0:01:25]} 22. Qxf4 {[%clk 0:01:06]}  g5 {[%clk 0:01:17]} 23. Qf3 {[%clk 0:01:06]}  Qd7 {[%clk 0:01:17]} 24. h5 {[%clk 0:01:06]}  Qd5 {[%clk 0:01:11]} 25. Qxd5 {[%clk 0:01:05]}  exd5 {[%clk 0:01:12]} 26. g4 {[%clk 0:01:06]}  f6 {[%clk 0:01:07]} 27. O-O {[%clk 0:01:05]}  fxe5 {[%clk 0:01:00]} 28. dxe5 {[%clk 0:01:06]}  Kd7 {[%clk 0:01:01]} 29. f4 {[%clk 0:01:05]}  gxf4 {[%clk 0:00:57]} 30. Rxf4 {[%clk 0:01:06]}  R8h7 {[%clk 0:00:58]} 31. Raf1 {[%clk 0:01:02]}  Ke7 {[%clk 0:00:52]} 32. Kg2 {[%clk 0:00:59]}  c5 {[%clk 0:00:51]} 33. Kg3 {[%clk 0:00:59]}  b5 {[%clk 0:00:49]} 34. Rf6 {[%clk 0:00:58]}  d4 {[%clk 0:00:44]} 35. cxd4 {[%clk 0:00:57]}  cxd4 {[%clk 0:00:45]} 36. Rxh6 {[%clk 0:00:56]}  Rxh6 {[%clk 0:00:44]} 37. Rd1 {[%clk 0:00:57]}  Rxa6 {[%clk 0:00:40]} 38. Rxd4 {[%clk 0:00:57]}  Ke6 {[%clk 0:00:39]} 39. Kf4 {[%clk 0:00:38]}  Ra4 {[%clk 0:00:28]} 40. Ke4 {[%clk 0:00:38]}  Ra1 {[%clk 0:00:24]} 41. Rd6+ {[%clk 0:00:38]}  Ke7 {[%clk 0:00:24]} 42. h6 {[%clk 0:00:39]}  b4 {[%clk 0:00:22]} 43. h7 {[%clk 0:00:34]}  Rh1 {[%clk 0:00:22]} 44. Ra6 {[%clk 0:00:35]}  b3 {[%clk 0:00:20]} 45. Rxa7+ {[%clk 0:00:35]}  Ke6 {[%clk 0:00:20]} 46. Ra6+ {[%clk 0:00:35]}  Ke7 {[%clk 0:00:20]} 47. Rb6 {[%clk 0:00:36]}  b2 {[%clk 0:00:20]} 48. Rxb2 {[%clk 0:00:36]}  Rxh7 {[%clk 0:00:20]} 49. Rb7+ {[%clk 0:00:35]}  Ke6 {[%clk 0:00:21]} 50. Rb6+ {[%clk 0:00:36]}  Ke7 {[%clk 0:00:21]} 51. Kf5 {[%clk 0:00:34]}  Rf7+ {[%clk 0:00:21]} 52. Rf6 {[%clk 0:00:35]}  Rh7 {[%clk 0:00:21]} 53. g5 {[%clk 0:00:35]}  Rh1 {[%clk 0:00:22]} 54. Kg6 {[%clk 0:00:36]}  Re1 {[%clk 0:00:21]} 55. e6 {[%clk 0:00:31]}  Re5 {[%clk 0:00:22]} 56. Kh6 {[%clk 0:00:31]}  Rd5 {[%clk 0:00:20]} 57. Rf2 {[%clk 0:00:31]}  Kxe6 {[%clk 0:00:19]} 58. g6 {[%clk 0:00:32]}  Rd3 {[%clk 0:00:19]} 59. g7 {[%clk 0:00:28]}  Rh3+ {[%clk 0:00:19]} 60. Kg6 {[%clk 0:00:28]}  Rg3+ {[%clk 0:00:18]} 61. Kh7 {[%clk 0:00:29]}  Rh3+ {[%clk 0:00:18]} 62. Kg8 {[%clk 0:00:30]}  Rg3 {[%clk 0:00:16]} 63. Kf8 {[%clk 0:00:29]} 1-0


[Site "https://www.chess.com"]

[Event "Titled Tuesday Blitz April 12 Early 2022"]
[White "Kobalia, Mikhail"]
[Black "Karas, Marek"]
[WhiteFideId "4119150"]
[BlackFideId "14928558"]
[WhiteElo "2667"]
[BlackElo "2271"]
[Result "1-0"]
[Round "02"]
[TimeControl "180+1"]
[Date "2022.04.13"]
[WhiteClock "0:00:56"]
[BlackClock "0:00:04"]

1. e4 {[%clk 0:02:48]}  e6 {[%clk 0:02:59]} 2. d3 {[%clk 0:02:45]}  d5 {[%clk 0:02:59]} 3. Nd2 {[%clk 0:02:44]}  Nf6 {[%clk 0:02:58]} 4. Ngf3 {[%clk 0:02:39]}  Nc6 {[%clk 0:02:58]} 5. c3 {[%clk 0:02:35]}  e5 {[%clk 0:02:58]} 6. Be2 {[%clk 0:02:33]}  a5 {[%clk 0:02:57]} 7. O-O {[%clk 0:02:33]}  dxe4 {[%clk 0:02:55]} 8. dxe4 {[%clk 0:02:33]}  Be7 {[%clk 0:02:47]} 9. Bb5 {[%clk 0:02:32]}  Bd6 {[%clk 0:02:37]} 10. Nc4 {[%clk 0:02:29]}  Qe7 {[%clk 0:02:34]} 11. Bg5 {[%clk 0:02:28]}  O-O {[%clk 0:02:32]} 12. Ne3 {[%clk 0:02:27]}  Be6 {[%clk 0:02:29]} 13. Re1 {[%clk 0:02:26]}  h6 {[%clk 0:02:22]} 14. Bh4 {[%clk 0:02:19]}  Rad8 {[%clk 0:02:03]} 15. Qc2 {[%clk 0:02:18]}  Na7 {[%clk 0:01:44]} 16. Bc4 {[%clk 0:02:09]}  c6 {[%clk 0:01:40]} 17. Bxe6 {[%clk 0:02:02]}  Qxe6 {[%clk 0:01:35]} 18. Qb3 {[%clk 0:02:02]}  b5 {[%clk 0:01:22]} 19. Qxe6 {[%clk 0:01:46]}  fxe6 {[%clk 0:01:23]} 20. Rad1 {[%clk 0:01:45]}  Bc7 {[%clk 0:01:12]} 21. h3 {[%clk 0:01:40]}  g5 {[%clk 0:00:40]} 22. Bg3 {[%clk 0:01:39]}  Nxe4 {[%clk 0:00:38]} 23. Bxe5 {[%clk 0:01:34]}  Bxe5 {[%clk 0:00:24]} 24. Nxe5 {[%clk 0:01:33]}  Rxd1 {[%clk 0:00:24]} 25. Nxd1 {[%clk 0:01:33]}  Nd6 {[%clk 0:00:19]} 26. Ne3 {[%clk 0:01:31]}  Nf5 {[%clk 0:00:16]} 27. Rd1 {[%clk 0:01:07]}  Nxe3 {[%clk 0:00:08]} 28. fxe3 {[%clk 0:01:07]}  Rf5 {[%clk 0:00:07]} 29. Ng4 {[%clk 0:01:08]}  Kg7 {[%clk 0:00:02]} 30. Rd7+ {[%clk 0:01:07]}  Rf7 {[%clk 0:00:02]} 31. Rxf7+ {[%clk 0:01:08]}  Kxf7 {[%clk 0:00:03]} 32. Nxh6+ {[%clk 0:01:08]}  Kg6 {[%clk 0:00:04]} 33. Ng4 {[%clk 0:01:08]}  b4 {[%clk 0:00:03]} 34. cxb4 {[%clk 0:01:06]}  axb4 {[%clk 0:00:03]} 35. Kf2 {[%clk 0:01:06]}  Kf5 {[%clk 0:00:04]} 36. Kf3 {[%clk 0:01:06]}  c5 {[%clk 0:00:03]} 37. e4+ {[%clk 0:01:06]}  Kg6 {[%clk 0:00:03]} 38. Ke3 {[%clk 0:01:05]}  Nb5 {[%clk 0:00:02]} 39. Ne5+ {[%clk 0:01:03]}  Kf6 {[%clk 0:00:03]} 40. Nd7+ {[%clk 0:01:03]}  Ke7 {[%clk 0:00:03]} 41. Nxc5 {[%clk 0:01:03]}  Kd6 {[%clk 0:00:04]} 42. Nd3 {[%clk 0:01:03]}  b3 {[%clk 0:00:04]} 43. axb3 {[%clk 0:01:03]}  e5 {[%clk 0:00:04]} 44. g3 {[%clk 0:01:03]}  Nd4 {[%clk 0:00:04]} 45. b4 {[%clk 0:01:02]}  Ne6 {[%clk 0:00:03]} 46. h4 {[%clk 0:01:01]}  gxh4 {[%clk 0:00:03]} 47. gxh4 {[%clk 0:01:02]}  Ng7 {[%clk 0:00:04]} 48. Kf3 {[%clk 0:00:56]} 1-0


[Site "https://www.chess.com"]

[Event "Titled Tuesday Blitz April 12 Early 2022"]
[White "Krutko, Anatoly"]
[Black "Ovezdurdyyeva, Jemal"]
[WhiteFideId "4185862"]
[BlackFideId "14001888"]
[WhiteElo "2378"]
[BlackElo "1946"]
[Result "1-0"]
[Round "02"]
[TimeControl "180+1"]
[Date "2022.04.13"]
[WhiteClock "0:02:17"]
[BlackClock "0:01:38"]

1. d4 {[%clk 0:02:56]}  Nf6 {[%clk 0:02:59]} 2. c4 {[%clk 0:02:54]}  g6 {[%clk 0:02:58]} 3. Nc3 {[%clk 0:02:54]}  d5 {[%clk 0:02:58]} 4. Qa4+ {[%clk 0:02:53]}  c6 {[%clk 0:02:55]} 5. cxd5 {[%clk 0:02:52]}  Nxd5 {[%clk 0:02:55]} 6. e4 {[%clk 0:02:52]}  Nb6 {[%clk 0:02:51]} 7. Qb3 {[%clk 0:02:45]}  Qxd4 {[%clk 0:02:45]} 8. Nf3 {[%clk 0:02:45]}  Qd6 {[%clk 0:02:38]} 9. Ng5 {[%clk 0:02:39]}  Qf6 {[%clk 0:02:24]} 10. Be2 {[%clk 0:02:31]}  N8d7 {[%clk 0:02:10]} 11. f4 {[%clk 0:02:30]}  Nc5 {[%clk 0:01:51]} 12. Qc2 {[%clk 0:02:29]}  h6 {[%clk 0:01:49]} 13. e5 {[%clk 0:02:28]}  Qf5 {[%clk 0:01:48]} 14. Qxf5 {[%clk 0:02:24]}  Bxf5 {[%clk 0:01:49]} 15. Nf3 {[%clk 0:02:24]}  Nd3+ {[%clk 0:01:45]} 16. Bxd3 {[%clk 0:02:17]}  Bxd3 {[%clk 0:01:46]} 17. e6 {[%clk 0:02:17]}  fxe6 {[%clk 0:01:43]} 18. Ne5 {[%clk 0:02:17]}  Bg7 {[%clk 0:01:38]} 19. Nxd3 {[%clk 0:02:17]} 1-0


[Site "https://www.chess.com"]

[Event "Titled Tuesday Blitz April 12 Early 2022"]
[White "Kubicka, Anna"]
[Black "Skytte, Rasmus"]
[WhiteFideId "1152254"]
[BlackFideId "1404210"]
[WhiteElo "2000"]
[BlackElo "2430"]
[Result "1-0"]
[Round "02"]
[TimeControl "180+1"]
[Date "2022.04.13"]
[WhiteClock "0:02:03"]
[BlackClock "0:02:21"]

1. e4 {[%clk 0:03:00]}  c6 {[%clk 0:02:59]} 2. Nc3 {[%clk 0:03:00]}  d5 {[%clk 0:03:00]} 3. Nf3 {[%clk 0:03:00]}  dxe4 {[%clk 0:03:00]} 4. Nxe4 {[%clk 0:03:01]}  Nf6 {[%clk 0:03:00]} 5. Nxf6+ {[%clk 0:03:01]}  exf6 {[%clk 0:03:00]} 6. d4 {[%clk 0:03:01]}  Bd6 {[%clk 0:02:59]} 7. Be3 {[%clk 0:03:02]}  O-O {[%clk 0:02:59]} 8. Bd3 {[%clk 0:03:02]}  Re8 {[%clk 0:02:59]} 9. Qd2 {[%clk 0:02:58]}  Nd7 {[%clk 0:02:58]} 10. O-O-O {[%clk 0:02:58]}  Nf8 {[%clk 0:02:58]} 11. Kb1 {[%clk 0:02:58]}  Be6 {[%clk 0:02:58]} 12. h3 {[%clk 0:02:49]}  Rc8 {[%clk 0:02:58]} 13. g4 {[%clk 0:02:49]}  c5 {[%clk 0:02:45]} 14. dxc5 {[%clk 0:02:46]}  Bxc5 {[%clk 0:02:44]} 15. Bxc5 {[%clk 0:02:46]}  Rxc5 {[%clk 0:02:45]} 16. Bxh7+ {[%clk 0:02:41]}  Nxh7 {[%clk 0:02:45]} 17. Qxd8 {[%clk 0:02:41]}  Rxd8 {[%clk 0:02:46]} 18. Rxd8+ {[%clk 0:02:41]}  Nf8 {[%clk 0:02:47]} 19. Nd4 {[%clk 0:02:34]}  Ra5 {[%clk 0:02:38]} 20. Nxe6 {[%clk 0:02:32]}  fxe6 {[%clk 0:02:39]} 21. Rhd1 {[%clk 0:02:23]}  Re5 {[%clk 0:02:36]} 22. a4 {[%clk 0:02:16]}  Re2 {[%clk 0:02:33]} 23. R1d7 {[%clk 0:02:15]}  Re1+ {[%clk 0:02:28]} 24. Ka2 {[%clk 0:02:14]}  Re4 {[%clk 0:02:28]} 25. Rxb7 {[%clk 0:02:12]}  Rxa4+ {[%clk 0:02:28]} 26. Kb3 {[%clk 0:02:12]}  Rf4 {[%clk 0:02:28]} 27. Rbb8 {[%clk 0:02:11]}  Rf3+ {[%clk 0:02:25]} 28. c3 {[%clk 0:02:10]}  Rxf2 {[%clk 0:02:25]} 29. Rxf8+ {[%clk 0:02:10]}  Kh7 {[%clk 0:02:26]} 30. h4 {[%clk 0:02:08]}  Kg6 {[%clk 0:02:24]} 31. Rb7 {[%clk 0:02:06]}  Rf4 {[%clk 0:02:22]} 32. h5+ {[%clk 0:02:05]}  Kg5 {[%clk 0:02:21]} 33. Rxg7+ {[%clk 0:02:05]}  Kh4 {[%clk 0:02:21]} 34. h6 {[%clk 0:02:04]}  Rxg4 {[%clk 0:02:22]} 35. Rxg4+ {[%clk 0:02:04]}  Kxg4 {[%clk 0:02:23]} 36. h7 {[%clk 0:02:05]}  f5 {[%clk 0:02:23]} 37. h8=Q {[%clk 0:02:05]}  f4 {[%clk 0:02:24]} 38. Qe5 {[%clk 0:02:04]}  f3 {[%clk 0:02:25]} 39. Qf4+ {[%clk 0:02:03]}  Kh3 {[%clk 0:02:23]} 40. Qg5 {[%clk 0:02:02]}  Kh2 {[%clk 0:02:21]} 41. Rh8# {[%clk 0:02:03]} 1-0


[Site "https://www.chess.com"]

[Event "Titled Tuesday Blitz April 12 Early 2022"]
[White "Lagumina, Giulio"]
[Black "Garv Gaur"]
[WhiteFideId "800619"]
[BlackFideId "45030839"]
[WhiteElo "2277"]
[BlackElo "1950"]
[Result "0-1"]
[Round "02"]
[TimeControl "180+1"]
[Date "2022.04.13"]
[WhiteClock "0:00:26"]
[BlackClock "0:01:25"]

1. e4 {[%clk 0:01:30]}  c6 {[%clk 0:02:59]} 2. d4 {[%clk 0:01:29]}  d5 {[%clk 0:02:59]} 3. e5 {[%clk 0:01:29]}  Bf5 {[%clk 0:02:59]} 4. h4 {[%clk 0:01:28]}  h5 {[%clk 0:02:59]} 5. Bd3 {[%clk 0:01:27]}  Bxd3 {[%clk 0:02:58]} 6. Qxd3 {[%clk 0:01:28]}  e6 {[%clk 0:02:59]} 7. Bg5 {[%clk 0:01:27]}  Qa5+ {[%clk 0:02:59]} 8. Nd2 {[%clk 0:01:27]}  Qa6 {[%clk 0:02:59]} 9. c4 {[%clk 0:01:27]}  Nh6 {[%clk 0:02:58]} 10. Ne2 {[%clk 0:01:27]}  Nf5 {[%clk 0:02:57]} 11. O-O {[%clk 0:01:26]}  Nd7 {[%clk 0:02:57]} 12. b3 {[%clk 0:01:26]}  Bb4 {[%clk 0:02:57]} 13. Ng3 {[%clk 0:01:24]}  g6 {[%clk 0:02:46]} 14. Nxf5 {[%clk 0:01:23]}  gxf5 {[%clk 0:02:47]} 15. Nf3 {[%clk 0:01:22]}  Be7 {[%clk 0:02:30]} 16. Bxe7 {[%clk 0:01:15]}  Kxe7 {[%clk 0:02:30]} 17. Qc3 {[%clk 0:01:03]}  Qb6 {[%clk 0:02:20]} 18. Rac1 {[%clk 0:00:56]}  a5 {[%clk 0:01:47]} 19. Qe3 {[%clk 0:00:55]}  Rag8 {[%clk 0:01:45]} 20. Rc3 {[%clk 0:00:49]}  Rg4 {[%clk 0:01:43]} 21. cxd5 {[%clk 0:00:45]}  cxd5 {[%clk 0:01:39]} 22. Rfc1 {[%clk 0:00:44]}  Rhg8 {[%clk 0:01:38]} 23. g3 {[%clk 0:00:43]}  f4 {[%clk 0:01:34]} 24. Qd3 {[%clk 0:00:33]}  fxg3 {[%clk 0:01:33]} 25. Ng5 {[%clk 0:00:29]}  gxf2+ {[%clk 0:01:26]} 26. Kxf2 {[%clk 0:00:26]}  Rxd4 {[%clk 0:01:25]} 0-1


[Site "https://www.chess.com"]